fUSD/lending_fUSD_20250716
["ID","MTS","AMOUNT","RATE_DAILY","PERIOD"]
[372426331,1752640250531,-460.0,0.00021917,2]
[372426332,1752640250543,-151.0,0.00021917,2]
[372426333,1752640250552,-460.0,0.00021917,2]
[372426334,1752640250562,-460.0,0.00021917,2]
[372426335,1752640250571,-583.31,0.00021917,2]
[372426336,1752640250581,-1804.88,0.00021917,2]
[372426337,1752640250590,-542.27,0.00021917,2]
[372426338,1752640250601,-656.93,0.00021917,2]
[372426339,1752640250611,-460.0,0.00021917,2]
[372426340,1752640250623,-461.37196757,0.00021917,2]
[372426341,1752640250634,-460.0,0.00021917,2]
[372426342,1752640250645,-560.48,0.00021917,2]
[372426343,1752640250655,-460.0,0.00021917,2]
[372426344,1752640250665,-3481.05,0.00021917,2]
[372426345,1752640250674,-460.0,0.00021917,2]
[372426346,1752640250684,-463.58,0.00021917,2]
[372426347,1752640250694,-1105.17,0.00021917,2]
[372426348,1752640250704,-666.91,0.00021917,2]
[372426349,1752640250713,-460.0,0.00021917,2]
[372426350,1752640250723,-460.0,0.00021917,2]
[372426351,1752640250732,-1159.7,0.00021917,2]
[372426352,1752640250743,-530.82,0.00021917,2]
[372426353,1752640250752,-463.10053598,0.00021917,2]
[372426354,1752640250762,-460.0,0.00021917,2]
[372426355,1752640250772,-484.14,0.00021917,2]
[372426356,1752640250782,-3470.49,0.00021917,2]
[372426357,1752640250792,-460.0,0.00021917,2]
[372426358,1752640250802,-938.33,0.00021917,2]
[372426359,1752640250812,-982.99,0.00021917,2]
[372426360,1752640250822,-460.0,0.00021917,2]
[372426361,1752640250833,-460.0,0.00021917,2]
[372426362,1752640250843,-2866.85,0.00021917,2]
[372426363,1752640250852,-460.0,0.00021917,2]
[372426364,1752640250862,-460.0,0.00021917,2]
[372426365,1752640250871,-691.52,0.00021917,2]
[372426366,1752640250881,-3403.61,0.00021917,2]
[372426367,1752640250891,-573.33136314,0.00021917,2]
[372426368,1752640250900,-920.71,0.00021917,2]
[372426369,1752640250910,-460.0,0.00021917,2]
[372426370,1752640250919,-567.25,0.00021917,2]
[372426371,1752640250929,-1276.87,0.00021917,2]
[372426372,1752640250939,-460.0,0.00021917,2]
[372426373,1752640250948,-460.0,0.00021917,2]
[372426374,1752640250958,-606.73651608,0.00021917,2]
[372426375,1752640250968,-460.0,0.00021917,2]
[372426376,1752640250977,-460.0,0.00021917,2]
[372426377,1752640250987,-461.96592007,0.00021917,2]
[372426378,1752640250997,-1200.16,0.00021917,2]
[372426379,1752640251007,-460.0,0.00021917,2]
[372426380,1752640251016,-151.0,0.00021917,2]
[372426381,1752640251029,-460.0,0.00021917,2]
[372426382,1752640251040,-151.0,0.00021917,2]
[372426383,1752640251049,-151.0,0.00021917,2]
[372426384,1752640251059,-151.0,0.00021917,2]
[372426385,1752640251069,-460.0,0.00021917,2]
[372426386,1752640251079,-151.0,0.00021917,2]
[372426387,1752640251089,-2533.69,0.00021917,2]
[372426388,1752640251100,-1165.61,0.00021917,2]
[372426389,1752640251110,-1038.04,0.00021917,2]
[372426390,1752640251119,-1033.92,0.00021917,2]
[372426391,1752640251128,-569.24,0.00021917,2]
[372426392,1752640251138,-460.0,0.00021917,2]
[372426393,1752640251149,-460.0,0.00021917,2]
[372426394,1752640251160,-461.15765315,0.00021917,2]
[372426395,1752640251171,-460.0,0.00021917,2]
[372426396,1752640251182,-460.0,0.00021917,2]
[372426397,1752640251192,-461.27931061,0.00021917,2]
[372426398,1752640251203,-1064.42,0.00021917,2]
[372426399,1752640251215,-640.04,0.00021917,2]
[372426400,1752640251224,-460.0,0.00021917,2]
[372426401,1752640251235,-460.0,0.00021917,2]
[372426402,1752640251245,-1366.4,0.00021917,2]
[372426403,1752640251254,-538.45,0.00021917,2]
[372426404,1752640251264,-1068.62,0.00021917,2]
[372426405,1752640251274,-460.0,0.00021917,2]
[372426406,1752640251285,-1538.96,0.00021917,2]
[372426407,1752640251295,-2121.89,0.00021917,2]
[372426408,1752640251305,-461.4313427,0.00021917,2]
[372426409,1752640251314,-1732.51,0.00021917,2]
[372426410,1752640251325,-460.0,0.00021917,2]
[372426411,1752640251335,-151.0,0.00021917,2]
[372426412,1752640251344,-460.0,0.00021917,2]
[372426413,1752640251354,-461.20398739,0.00021917,2]
[372426414,1752640251364,-3104.78,0.00021917,2]
[372426415,1752640251374,-151.0,0.00021917,2]
[372426416,1752640251384,-294.074278,0.00021917,2]
[372426417,1752640251393,-460.0,0.00021917,2]
[372426418,1752640251403,-460.0,0.00021917,2]
[372426419,1752640251412,-460.0,0.00021917,2]
[372426420,1752640251422,-186.323779,0.00021917,2]
[372426421,1752640251431,-460.0,0.00021917,2]
[372426422,1752640251440,-460.0,0.00021917,2]
[372426423,1752640251450,-1687.93,0.00021917,2]
[372426424,1752640251459,-1149.71,0.00021917,2]
[372426425,1752640251469,-151.0,0.00021917,2]
[372426426,1752640251478,-1453.95,0.00021917,2]
[372426427,1752640251488,-460.43670233,0.00021917,2]
[372426428,1752640251497,-460.0,0.00021917,2]
[372426429,1752640251507,-819.06,0.00021917,2]
[372426430,1752640251516,-2305.36,0.00021917,2]
[372426431,1752640251525,-572.42,0.00021917,2]
[372426432,1752640251535,-363.682387,0.00021917,2]
[372426433,1752640251546,-363.682387,0.00021917,2]
[372426434,1752640251556,-460.88981099,0.00021917,2]
[372426435,1752640251565,-363.682387,0.00021917,2]
[372426436,1752640251575,-363.682387,0.00021917,2]
[372426437,1752640251691,-538.23,0.00021917,2]
[372426438,1752640251701,-1753.99,0.00021917,2]
[372426439,1752640251711,-460.0,0.00021917,2]
[372426440,1752640251720,-645.26,0.00021917,2]
[372426441,1752640251729,-363.682387,0.00021917,2]
[372426442,1752640251739,-460.0,0.00021917,2]
[372426443,1752640251748,-363.682387,0.00021917,2]
[372426444,1752640251758,-363.682387,0.00021917,2]
[372426445,1752640251767,-1477.65,0.00021917,2]
[372426446,1752640251777,-460.0,0.00021917,2]
[372426447,1752640251787,-363.682387,0.00021917,2]
[372426448,1752640251797,-363.682387,0.00021917,2]
[372426449,1752640251807,-363.682387,0.00021917,2]
[372426450,1752640251816,-1365.28,0.00021917,2]
[372426451,1752640251825,-363.682387,0.00021917,2]
[372426452,1752640251835,-363.682387,0.00021917,2]
[372426453,1752640251844,-363.682387,0.00021917,2]
[372426454,1752640251854,-363.682387,0.00021917,2]
[372426455,1752640251863,-2156.9,0.00021917,2]
[372426456,1752640251873,-363.682387,0.00021917,2]
[372426457,1752640251882,-363.682387,0.00021917,2]
[372426458,1752640251892,-363.682387,0.00021917,2]
[372426459,1752640251901,-2757.42,0.00021917,2]
[372426460,1752640251911,-363.682387,0.00021917,2]
[372426461,1752640251920,-1514.04,0.00021917,2]
[372426462,1752640251929,-363.682387,0.00021917,2]
[372426463,1752640251938,-460.0,0.00021917,2]
[372426464,1752640251948,-460.0,0.00021917,2]
[372426465,1752640251957,-460.0,0.00021917,2]
[372426466,1752640251966,-460.0,0.00021917,2]
[372426467,1752640251975,-417.22563115,0.00021917,2]
[372426468,1752640251984,-460.0,0.00021917,2]
[372426469,1752640251993,-460.0,0.00021917,2]
[372426470,1752640252002,-500.0,0.00021917,2]
[372426471,1752640252012,-1268.31,0.00021917,2]
[372426472,1752640252021,-719.24,0.00021917,2]
[372426473,1752640252034,-151.0,0.00021917,2]
[372426474,1752640252045,-151.0,0.00021917,2]
[372426475,1752640252055,-151.0,0.00021917,2]
[372426476,1752640252064,-460.0,0.00021917,2]
[372426477,1752640252074,-3445.41,0.00021917,2]
[372426478,1752640252084,-460.0,0.00021917,2]
[372426479,1752640252094,-1011.5,0.00021917,2]
[372426480,1752640252103,-460.0,0.00021917,2]
[372426481,1752640252112,-519.6,0.00021917,2]
[372426482,1752640252122,-460.0,0.00021917,2]
[372426483,1752640252131,-2430.16,0.00021917,2]
[372426484,1752640252140,-483.76,0.00021917,2]
[372426485,1752640252149,-460.0,0.00021917,2]
[372426486,1752640252158,-460.0,0.00021917,2]
[372426487,1752640252167,-460.0,0.00021917,2]
[372426488,1752640252177,-460.0,0.00021917,2]
[372426489,1752640252186,-460.0,0.00021917,2]
[372426490,1752640252195,-2042.51,0.00021917,2]
[372426491,1752640252204,-460.0,0.00021917,2]
[372426492,1752640252214,-460.0,0.00021917,2]
[372426493,1752640252223,-637.93,0.00021917,2]
[372426494,1752640252232,-741.05,0.00021917,2]
[372426495,1752640252241,-608.82,0.00021917,2]
[372426496,1752640252250,-500.0,0.00021917,2]
[372426497,1752640252259,-500.0,0.00021917,2]
[372426498,1752640252269,-2074.09,0.00021917,2]
[372426499,1752640252278,-500.0,0.00021917,2]
[372426500,1752640252288,-500.0,0.00021917,2]
[372426501,1752640252298,-500.0,0.00021917,2]
[372426502,1752640252309,-460.0,0.00021917,2]
[372426503,1752640252318,-500.0,0.00021917,2]
[372426504,1752640252327,-460.0,0.00021917,2]
[372426505,1752640252337,-500.0,0.00021917,2]
[372426506,1752640252347,-282.7349704,0.00021917,2]
[372426507,1752640252357,-460.0,0.00021917,2]
[372426508,1752640252368,-150.0,0.00021917,2]
[372426509,1752640252377,-460.0,0.00021917,2]
[372426510,1752640252388,-460.0,0.00021917,2]
[372426511,1752640252398,-1983.96,0.00021917,2]
[372426512,1752640252408,-460.0,0.00021917,2]
[372426513,1752640252417,-500.0,0.00021917,2]
[372426514,1752640252427,-363.68238,0.00021917,2]
[372426515,1752640252436,-151.0,0.00021917,2]
[372426516,1752640252446,-460.0,0.00021917,2]
[372426517,1752640252455,-151.0,0.00021917,2]
[372426518,1752640252465,-460.0,0.00021917,2]
[372426519,1752640252474,-151.0,0.00021917,2]
[372426520,1752640252484,-2933.31,0.00021917,2]
[372426521,1752640252493,-173.219293,0.00021917,2]
[372426522,1752640252503,-1307.71,0.00021917,2]
[372426523,1752640252512,-460.0,0.00021917,2]
[372426524,1752640252521,-1908.0,0.00021917,2]
[372426525,1752640252530,-952.45,0.00021917,2]
[372426526,1752640252540,-460.0,0.00021917,2]
[372426527,1752640252550,-553.74843113,0.00021917,2]
[372426528,1752640252559,-460.0,0.00021917,2]
[372426529,1752640252568,-151.0,0.00021917,2]
[372426530,1752640252578,-151.0,0.00021917,2]
[372426531,1752640252587,-1102.06,0.00021917,2]
[372426532,1752640252596,-265.546736,0.00021917,2]
[372426533,1752640252605,-460.0,0.00021917,2]
[372426534,1752640252614,-1025.26,0.00021917,2]
[372426535,1752640252623,-460.0,0.00021917,2]
[372426536,1752640252632,-151.0,0.00021917,2]
[372426537,1752640252642,-155.829971,0.00021917,2]
[372426538,1752640252651,-773.51,0.00021917,2]
[372426539,1752640252661,-500.0,0.00021917,2]
[372426540,1752640252671,-627.78,0.00021917,2]
[372426541,1752640252681,-2607.27,0.00021917,2]
[372426542,1752640252690,-460.0,0.00021917,2]
[372426543,1752640252700,-3130.43,0.00021917,2]
[372426544,1752640252710,-952.16,0.00021917,2]
[372426545,1752640252719,-460.0,0.00021917,2]
[372426546,1752640252729,-464.07738992,0.00021917,2]
[372426547,1752640252738,-472.84,0.00021917,2]
[372426548,1752640252747,-500.0,0.00021917,2]
[372426549,1752640252757,-1213.3,0.00021917,2]
[372426550,1752640252766,-500.0,0.00021917,2]
[372426551,1752640252776,-792.71,0.00021917,2]
[372426552,1752640252785,-460.0,0.00021917,2]
[372426553,1752640252796,-500.0,0.00021917,2]
[372426554,1752640252805,-500.0,0.00021917,2]
[372426555,1752640252814,-500.0,0.00021917,2]
[372426556,1752640252824,-1305.47,0.00021917,2]
[372426557,1752640252833,-460.0,0.00021917,2]
[372426558,1752640252843,-460.0,0.00021917,2]
[372426559,1752640252852,-809.67,0.00021917,2]
[372426560,1752640252861,-1265.85,0.00021917,2]
[372426561,1752640252871,-460.87566142,0.00021917,2]
[372426562,1752640252880,-11483.99,0.00021917,2]
[372426563,1752640252889,-1067.76,0.00021917,2]
[372426564,1752640252899,-151.0,0.00021917,2]
[372426565,1752640252908,-460.0,0.00021917,2]
[372426566,1752640252917,-151.0,0.00021917,2]
[372426567,1752640252927,-151.0,0.00021917,2]
[372426568,1752640252936,-151.0,0.00021917,2]
[372426569,1752640252946,-460.0,0.00021917,2]
[372426570,1752640252956,-1363.21,0.00021917,2]
[372426571,1752640252965,-151.0,0.00021917,2]
[372426572,1752640252975,-205.644021,0.00021917,2]
[372426573,1752640252984,-831.13,0.00021917,2]
[372426574,1752640252993,-460.0,0.00021917,2]
[372426575,1752640253003,-769.07,0.00021917,2]
[372426576,1752640253011,-338.13819307,0.00021917,2]
[372426577,1752640253021,-1059.27,0.00021917,2]
[372426578,1752640253035,-3236.11,0.00021917,2]
[372426579,1752640253044,-527.16,0.00021917,2]
[372426580,1752640253053,-460.0,0.00021917,2]
[372426581,1752640253062,-538.67018256,0.00021917,2]
[372426582,1752640253073,-624.89,0.00021917,2]
[372426583,1752640253082,-624.89,0.00021917,2]
[372426584,1752640253092,-624.89,0.00021917,2]
[372426585,1752640253102,-624.89,0.00021917,2]
[372426586,1752640253112,-624.89,0.00021917,2]
[372426587,1752640253123,-624.89,0.00021917,2]
[372426588,1752640253132,-624.89,0.00021917,2]
[372426589,1752640253141,-951.64,0.00021917,2]
[372426590,1752640253151,-7543.56,0.00021917,2]
[372426591,1752640253169,-463.42096573,0.00021917,2]
[372426592,1752640253179,-460.0,0.00021917,2]
[372426593,1752640253189,-6198.63,0.00021917,2]
[372426594,1752640253199,-460.0,0.00021917,2]
[372426595,1752640253213,-460.0,0.00021917,2]
[372426596,1752640253223,-460.0,0.00021917,2]
[372426597,1752640253236,-1807.03,0.00021917,2]
[372426598,1752640253246,-621.46,0.00021917,2]
[372426599,1752640253256,-500.0,0.00021917,2]
[372426600,1752640253267,-500.0,0.00021917,2]
[372426601,1752640253283,-500.0,0.00021917,2]
[372426602,1752640253293,-500.0,0.00021917,2]
[372426603,1752640253303,-500.0,0.00021917,2]
[372426604,1752640253313,-500.0,0.00021917,2]
[372426605,1752640253322,-460.0,0.00021917,2]
[372426606,1752640253331,-2038.27,0.00021917,2]
[372426607,1752640253341,-460.0,0.00021917,2]
[372426608,1752640253349,-500.0,0.00021917,2]
[372426609,1752640253358,-500.0,0.00021917,2]
[372426610,1752640253369,-460.0,0.00021917,2]
[372426611,1752640253379,-1724.3,0.00021917,2]
[372426612,1752640253388,-460.0,0.00021917,2]
[372426613,1752640253399,-460.0,0.00021917,2]
[372426614,1752640253409,-460.0,0.00021917,2]
[372426615,1752640253420,-460.0,0.00021917,2]
[372426616,1752640253430,-619.92,0.00021917,2]
[372426617,1752640253440,-460.0,0.00021917,2]
[372426618,1752640253450,-1582.61,0.00021917,2]
[372426619,1752640253460,-1158.56,0.00021917,2]
[372426620,1752640253470,-151.0,0.00021917,2]
[372426621,1752640253479,-6615.71,0.00021917,2]
[372426622,1752640253490,-151.0,0.00021917,2]
[372426623,1752640253499,-393.265706,0.00021917,2]
[372426624,1752640253510,-151.0,0.00021917,2]
[372426625,1752640253521,-393.265706,0.00021917,2]
[372426626,1752640253531,-460.0,0.00021917,2]
[372426627,1752640253541,-460.0,0.00021917,2]
[372426628,1752640253550,-393.265706,0.00021917,2]
[372426629,1752640253559,-601.12,0.00021917,2]
[372426630,1752640253568,-393.265706,0.00021917,2]
[372426631,1752640253577,-393.265706,0.00021917,2]
[372426632,1752640253586,-393.265706,0.00021917,2]
[372426633,1752640253595,-460.0,0.00021917,2]
[372426634,1752640253604,-460.0,0.00021917,2]
[372426635,1752640253614,-393.265706,0.00021917,2]
[372426636,1752640253623,-393.265706,0.00021917,2]
[372426637,1752640253632,-460.0,0.00021917,2]
[372426638,1752640253642,-393.265706,0.00021917,2]
[372426639,1752640253651,-3242.71,0.00021917,2]
[372426640,1752640253660,-393.265706,0.00021917,2]
[372426641,1752640253670,-393.265706,0.00021917,2]
[372426642,1752640253679,-393.265706,0.00021917,2]
[372426643,1752640253689,-393.265706,0.00021917,2]
[372426644,1752640253699,-393.265706,0.00021917,2]
[372426645,1752640253708,-393.265706,0.00021917,2]
[372426646,1752640253717,-393.265706,0.00021917,2]
[372426647,1752640253728,-393.265706,0.00021917,2]
[372426648,1752640253740,-460.0,0.00021917,2]
[372426649,1752640253750,-528.25,0.00021917,2]
[372426650,1752640253761,-393.265706,0.00021917,2]
[372426651,1752640253772,-393.265706,0.00021917,2]
[372426652,1752640253782,-923.19,0.00021917,2]
[372426653,1752640253791,-393.265705,0.00021917,2]
[372426654,1752640253801,-543.91825323,0.00021917,2]
[372426655,1752640253812,-460.0,0.00021917,2]
[372426656,1752640253822,-4298.25,0.00021917,2]
[372426657,1752640253832,-1265.54,0.00021917,2]
[372426658,1752640253841,-508.08,0.00021917,2]
[372426659,1752640253851,-460.0,0.00021917,2]
[372426660,1752640253862,-460.0,0.00021917,2]
[372426661,1752640253872,-151.0,0.00021917,2]
[372426662,1752640253882,-2220.71,0.00021917,2]
[372426663,1752640253891,-151.0,0.00021917,2]
[372426664,1752640253900,-3928.07,0.00021917,2]
[372426665,1752640253910,-629.54,0.00021917,2]
[372426666,1752640253919,-151.0,0.00021917,2]
[372426667,1752640253929,-151.0,0.00021917,2]
[372426668,1752640253939,-151.0,0.00021917,2]
[372426669,1752640253948,-151.0,0.00021917,2]
[372426670,1752640253958,-521.5,0.00021917,2]
[372426671,1752640253967,-151.0,0.00021917,2]
[372426672,1752640253978,-521.5,0.00021917,2]
[372426673,1752640253988,-460.0,0.00021917,2]
[372426674,1752640253998,-151.0,0.00021917,2]
[372426675,1752640254007,-521.5,0.00021917,2]
[372426676,1752640254017,-521.5,0.00021917,2]
[372426677,1752640254031,-151.0,0.00021917,2]
[372426678,1752640254042,-8133.14,0.00021917,2]
[372426679,1752640254051,-521.5,0.00021917,2]
[372426680,1752640254060,-151.0,0.00021917,2]
[372426681,1752640254072,-521.5,0.00021917,2]
[372426682,1752640254083,-231.185163,0.00021917,2]
[372426683,1752640254092,-521.5,0.00021917,2]
[372426684,1752640254104,-521.5,0.00021917,2]
[372426685,1752640254115,-521.5,0.00021917,2]
[372426686,1752640254126,-460.0,0.00021917,2]
[372426687,1752640254136,-460.0,0.00021917,2]
[372426688,1752640254146,-460.0,0.00021917,2]
[372426689,1752640254156,-460.0,0.00021917,2]
[372426690,1752640254165,-18906.58,0.00021917,2]
[372426691,1752640254175,-500.0,0.00021917,2]
[372426692,1752640254184,-500.0,0.00021917,2]
[372426693,1752640254194,-20841.03,0.00021917,2]
[372426694,1752640254206,-500.0,0.00021917,2]
[372426695,1752640254217,-500.0,0.00021917,2]
[372426696,1752640254227,-500.0,0.00021917,2]
[372426697,1752640254236,-460.0,0.00021917,2]
[372426698,1752640254245,-461.52471845,0.00021917,2]
[372426699,1752640254255,-460.0,0.00021917,2]
[372426700,1752640254264,-500.0,0.00021917,2]
[372426701,1752640254273,-500.0,0.00021917,2]
[372426702,1752640254282,-2969.77,0.00021917,2]
[372426703,1752640254291,-500.0,0.00021917,2]
[372426704,1752640254301,-500.0,0.00021917,2]
[372426705,1752640254310,-500.0,0.00021917,2]
[372426706,1752640254319,-460.0,0.00021917,2]
[372426707,1752640254329,-460.0,0.00021917,2]
[372426708,1752640254338,-2535.31,0.00021917,2]
[372426709,1752640254347,-460.0,0.00021917,2]
[372426710,1752640254357,-2337.46,0.00021917,2]
[372426711,1752640254367,-1900.47,0.00021917,2]
[372426712,1752640254378,-460.0,0.00021917,2]
[372426713,1752640254388,-487.14,0.00021917,2]
[372426714,1752640254397,-782.3,0.00021917,2]
[372426715,1752640254406,-782.3,0.00021917,2]
[372426716,1752640254416,-500.0,0.00021917,2]
[372426717,1752640254427,-782.3,0.00021917,2]
[372426718,1752640254437,-1683.45,0.00021917,2]
[372426719,1752640254447,-500.0,0.00021917,2]
[372426720,1752640254456,-860.31,0.00021917,2]
[372426721,1752640254467,-782.3,0.00021917,2]
[372426722,1752640254476,-782.3,0.00021917,2]
[372426723,1752640254485,-500.0,0.00021917,2]
[372426724,1752640254494,-782.3,0.00021917,2]
[372426725,1752640254503,-500.0,0.00021917,2]
[372426726,1752640254512,-782.3,0.00021917,2]
[372426727,1752640254522,-460.0,0.00021917,2]
[372426728,1752640254531,-500.0,0.00021917,2]
[372426729,1752640254540,-782.3,0.00021917,2]
[372426730,1752640254549,-460.0,0.00021917,2]
[372426731,1752640254558,-500.0,0.00021917,2]
[372426732,1752640254567,-782.3,0.00021917,2]
[372426733,1752640254576,-2637.65,0.00021917,2]
[372426734,1752640254586,-500.0,0.00021917,2]
[372426735,1752640254595,-782.3,0.00021917,2]
[372426736,1752640254604,-460.0,0.00021917,2]
[372426737,1752640254614,-434.21477913,0.00021917,2]
[372426738,1752640254623,-782.3,0.00021917,2]
[372426739,1752640254632,-782.3,0.00021917,2]
[372426740,1752640254641,-460.0,0.00021917,2]
[372426741,1752640254651,-460.0,0.00021917,2]
[372426742,1752640254660,-460.0,0.00021917,2]
[372426743,1752640254669,-460.0,0.00021917,2]
[372426744,1752640254678,-460.0,0.00021917,2]
[372426745,1752640254687,-1419.5,0.00021917,2]
[372426746,1752640254697,-460.0,0.00021917,2]
[372426747,1752640254706,-1139.62,0.00021917,2]
[372426748,1752640254715,-27228.32,0.00021917,2]
[372426749,1752640254725,-460.0,0.00021917,2]
[372426750,1752640254734,-460.0,0.00021917,2]
[372426751,1752640254744,-5888.13,0.00021917,2]
[372426752,1752640254753,-709.92,0.00021917,2]
[372426753,1752640254762,-151.0,0.00021917,2]
[372426754,1752640254772,-151.0,0.00021917,2]
[372426755,1752640254781,-638.34,0.00021917,2]
[372426756,1752640254791,-2036.06,0.00021917,2]
[372426757,1752640254800,-155.461104,0.00021917,2]
[372426758,1752640254810,-460.0,0.00021917,2]
[372426759,1752640254820,-460.0,0.00021917,2]
[372426760,1752640254830,-460.0,0.00021917,2]
[372426761,1752640254841,-460.0,0.00021917,2]
[372426762,1752640254850,-2023.58,0.00021917,2]
[372426763,1752640254860,-1434.93,0.00021917,2]
[372426764,1752640254870,-2409.67,0.00021917,2]
[372426765,1752640254879,-183.927672,0.00021917,2]
[372426766,1752640254889,-460.0,0.00021917,2]
[372426767,1752640254899,-8205.13,0.00021917,2]
[372426768,1752640254909,-460.0,0.00021917,2]
[372426769,1752640254919,-460.0,0.00021917,2]
[372426770,1752640254928,-460.0,0.00021917,2]
[372426771,1752640254938,-460.0,0.00021917,2]
[372426772,1752640254948,-1819.32,0.00021917,2]
[372426773,1752640254958,-3179.85,0.00021917,2]
[372426774,1752640254968,-460.0,0.00021917,2]
[372426775,1752640254977,-461.31509162,0.00021917,2]
[372426776,1752640254987,-618.76,0.00021917,2]
[372426777,1752640254996,-480.94,0.00021917,2]
[372426778,1752640255005,-1559.58,0.00021917,2]
[372426779,1752640255015,-460.0,0.00021917,2]
[372426780,1752640255025,-246.346296,0.00021917,2]
[372426781,1752640255037,-5633.77,0.00021917,2]
[372426782,1752640255047,-2554.14,0.00021917,2]
[372426783,1752640255056,-246.346296,0.00021917,2]
[372426784,1752640255066,-246.346296,0.00021917,2]
[372426785,1752640255075,-909.18,0.00021917,2]
[372426786,1752640255085,-246.346296,0.00021917,2]
[372426787,1752640255094,-1863.79,0.00021917,2]
[372426788,1752640255105,-246.346296,0.00021917,2]
[372426789,1752640255124,-246.346296,0.00021917,2]
[372426790,1752640255135,-246.346296,0.00021917,2]
[372426791,1752640255144,-460.0,0.00021917,2]
[372426792,1752640255154,-246.346296,0.00021917,2]
[372426793,1752640255163,-460.0,0.00021917,2]
[372426794,1752640255172,-592.0,0.00021917,2]
[372426795,1752640255181,-246.346296,0.00021917,2]
[372426796,1752640255191,-536.78,0.00021917,2]
[372426797,1752640255201,-550.03,0.00021917,2]
[372426798,1752640255210,-246.346296,0.00021917,2]
[372426799,1752640255219,-246.346296,0.00021917,2]
[372426800,1752640255228,-460.0,0.00021917,2]
[372426801,1752640255237,-246.346296,0.00021917,2]
[372426802,1752640255246,-246.346296,0.00021917,2]
[372426803,1752640255255,-246.346296,0.00021917,2]
[372426804,1752640255265,-246.346296,0.00021917,2]
[372426805,1752640255274,-246.346296,0.00021917,2]
[372426806,1752640255283,-755.76,0.00021917,2]
[372426807,1752640255292,-246.346296,0.00021917,2]
[372426808,1752640255302,-345.97676065,0.00021917,2]
[372426809,1752640255311,-246.346296,0.00021917,2]
[372426810,1752640255321,-246.346296,0.00021917,2]
[372426811,1752640255330,-1653.21,0.00021917,2]
[372426812,1752640255340,-246.346304,0.00021917,2]
[372426813,1752640255350,-462.17036318,0.00021917,2]
[372426814,1752640255359,-150.0,0.00021917,2]
[372426815,1752640255368,-1184.29,0.00021917,2]
[372426816,1752640255378,-11496.38,0.00021917,2]
[372426817,1752640255388,-1266.04,0.00021917,2]
[372426818,1752640255398,-1302.09,0.00021917,2]
[372426819,1752640255408,-5289.12,0.00021917,2]
[372426820,1752640255418,-500.0,0.00021917,2]
[372426821,1752640255427,-461.66072739,0.00021917,2]
[372426822,1752640255437,-3055.94,0.00021917,2]
[372426823,1752640255447,-2122.71,0.00021917,2]
[372426824,1752640255457,-460.0,0.00021917,2]
[372426825,1752640255467,-877.25,0.00021917,2]
[372426826,1752640255476,-877.25,0.00021917,2]
[372426827,1752640255489,-877.25,0.00021917,2]
[372426828,1752640255499,-7338.47,0.00021917,2]
[372426829,1752640255508,-877.25,0.00021917,2]
[372426830,1752640255517,-150.06267487,0.00021917,2]